[Event "Fagernes GM-A 2019"]
[Site "Fagernes"]
[Date "2019.04.15"]
[Round "2.15"]
[White "Abdrlauf, Elham"]
[Black "Dolzhikova, Olga"]
[Result "1-0"]
[ECO "B14"]
[WhiteElo "2123"]
[BlackElo "2231"]
[Annotator "NA"]
[PlyCount "215"]
[EventDate "2019.04.14"]
[EventType "tourn"]
[EventCountry "NOR"]
[SourceTitle "playchess.com"]
[Source "ChessBase"]
[SourceQuality "1"]
[TimeControl "40/7200:3600"]

1. e4 {[%emt 0:00:00]} g6 {[%emt 0:00:48]} 2. d4 {[%emt 0:00:48]} Bg7 3. Nf3 c5 {[%emt 0:02:15]} 4. c3 {[%emt 0:11:18]} cxd4 {[%emt 0:02:03]} 5. cxd4 {[%emt 0:00:47]} d5 {[%emt 0:00:18]} 6. exd5 {[%emt 0:00:17]} Nf6 {[%emt 0:00:14]} 7. Nc3 {[%emt 0:03:19]} O-O {[%emt 0:02:58]} 8. Bc4 {[%emt 0:06:09]} Nbd7 {[%emt 0:07:52]} 9. d6 {[%emt 0:05:24]} exd6 {[%emt 0:01:19]} 10. O-O {[%emt 0:00:27]} Nb6 {[%emt 0:05:01]} 11. Bb3 {[%emt 0:00:47]} Bf5 {[%emt 0:08:49]} 12. Bf4 {[%emt 0:04:07]} a6 {[%emt 0:07:42]} 13. Re1 {[%emt 0:17:52]} Rc8 {[%emt 0:01:24]} 14. h3 $11 {[%emt 0:23:51]} Rc7 {[%emt 0:15:37]} 15. g4 {[%emt 0:03:35]} Bc8 {[%emt 0:00:34]} 16. Qd3 {[%emt 0:01:15]} Re7 {[%emt 0:13:54]} 17. Rxe7 {[%emt 0:01:40]} Qxe7 {[%emt 0:00:02]} 18. Re1 {[%emt 0:00:33]} Qd7 {[%emt 0:02:20]} 19. a4 {[%emt 0:02:37]} Na8 {[%emt 0:01:59]} 20. Ne4 {[%emt 0:04:22]} Ne8 {[%emt 0:13:33]} 21. Nfg5 {[%emt 0:15:13]} d5 {[%emt 0:07:17]} 22. Nc5 {[%emt 0:00:15]} Qd8 {[%emt 0:01:17]} 23. Nf3 {[%emt 0:01:48]} Nac7 {[%emt 0:01:23]} 24. Bg5 {[%emt 0:00:29]} f6 {[%emt 0:00:47]} 25. Bd2 {[%emt 0:00:20]} Kh8 {[%emt 0:06:57]} 26. a5 {[%emt 0:00:58]} Nd6 {[%emt 0:01:16]} 27. Bf4 {[%emt 0:02:00]} Ndb5 {[%emt 0:00:26]} 28. Re3 {[%emt 0:00:29]} Re8 {[%emt 0:05:57]} 29. Rxe8+ {[%emt 0:01:46]} Qxe8 {[%emt 0:00:50]} 30. Qe3 {[%emt 0:00:05]} Qxe3 {[%emt 0:00:33]} 31. fxe3 {[%emt 0:00:05]} Kg8 {[%emt 0:00:34]} 32. e4 {[%emt 0:00:10]} f5 {[%emt 0:00:17]} 33. Bxc7 {[%emt 0:01:29]} Nxc7 {[%emt 0:01:35]} 34. exd5 {[%emt 0:00:46]} fxg4 {[%emt 0:00:03]} 35. d6+ {[%emt 0:00:28]} Kf8 {[%emt 0:00:30]} 36. hxg4 {[%emt 0:00:31]} Nb5 {[%emt 0:00:14]} 37. d7 {[%emt 0:00:17]} Bxd7 {[%emt 0:00:04]} 38. Nxd7+ {[%emt 0:00:04]} Ke7 {[%emt 0:00:04]} 39. Nb6 {[%emt 0:03:22]} Nxd4 {[%emt 0:00:34]} 40. Bd5 {[%emt 0:00:08]} Nxf3+ {[%emt 0:00:17]} 41. Bxf3 {[%emt 1:00:01]} Bxb2 {[%emt 1:00:04]} 42. Bxb7 {[%emt 0:00:07]} h5 {[%emt 0:00:00]} 43. Bxa6 {[%emt 0:00:00]} hxg4 {[%emt 0:00:00]} 44. Bb7 {[%emt 0:00:00]} Bd4+ {[%emt 0:00:00]} 45. Kg2 {[%emt 0:00:00]} Kd6 {[%emt 0:00:00]} 46. Nc4+ {[%emt 0:00:00]} Kc5 {[%emt 0:00:00]} 47. Nd2 {[%emt 0:00:00]} Kb5 {[%emt 0:00:00]} 48. a6 {[%emt 0:00:00]} Kb6 {[%emt 0:00:00]} 49. Kg3 {[%emt 0:00:00]} Kc7 {[%emt 0:00:00]} 50. Kxg4 {[%emt 0:00:00]} Bg1 {[%emt 0:00:00]} 51. Nc4 {[%emt 0:00:00]} Bf2 {[%emt 0:00:00]} 52. Kg5 {[%emt 0:00:00]} Bg1 {[%emt 0:00:00]} 53. Kxg6 {[%emt 0:00:00]} Bf2 {[%emt 0:00:00]} 54. Kf5 {[%emt 0:00:00]} Bg1 {[%emt 0:00:00]} 55. Ke5 {[%emt 0:00:00]} Bf2 {[%emt 0:00:00]} 56. Kd5 {[%emt 0:00:00]} Bg1 {[%emt 0:00:00]} 57. Ke4 {[%emt 0:00:00]} Bf2 {[%emt 0:00:00]} 58. Kd3 {[%emt 0:00:00]} Bg1 {[%emt 0:00:00]} 59. Kc3 {[%emt 0:00:00]} Bf2 {[%emt 0:00:00]} 60. Kb4 {[%emt 0:00:00]} Bg1 {[%emt 0:00:00]} 61. Kb5 {[%emt 0:00:00]} Bf2 {[%emt 0:00:00]} 62. Nd2 {[%emt 0:00:00]} Be3 {[%emt 0:00:00]} 63. Ne4 {[%emt 0:00:00]} Ba7 {[%emt 0:00:00]} 64. Bc6 {[%emt 0:00:00]} Bb8 {[%emt 0:00:00]} 65. Nc5 {[%emt 0:00:00]} Ba7 {[%emt 0:00:00]} 66. Bg2 {[%emt 0:00:00]} Kd6 {[%emt 0:00:00]} 67. Nb7+ {[%emt 0:00:00]} Kc7 {[%emt 0:00:00]} 68. Na5 {[%emt 0:00:00]} Bf2 {[%emt 0:00:00]} 69. Nc6 {[%emt 0:00:00]} Bg1 {[%emt 0:00:00]} 70. Bh3 {[%emt 0:00:00]} Kd6 {[%emt 0:00:00]} 71. Bg2 {[%emt 0:00:00]} Kc7 {[%emt 0:00:00]} 72. a7 {[%emt 0:00:00]} Bxa7 {[%emt 0:00:00]} 73. Nxa7 {[%emt 0:00:00]} Kd6 {[%emt 0:00:00]} 74. Nc6 {[%emt 0:00:00]} Ke6 {[%emt 0:00:00]} 75. Kc5 {[%emt 0:00:00]} Kf6 {[%emt 0:00:00]} 76. Kd5 {[%emt 0:00:00]} Kf5 {[%emt 0:00:00]} 77. Be4+ {[%emt 0:00:00]} Kf6 {[%emt 0:00:00]} 78. Kd6 {[%emt 0:00:00]} Kf7 {[%emt 0:00:00]} 79. Ke5 {[%emt 0:00:00]} Kg7 {[%emt 0:00:00]} 80. Kf5 {[%emt 0:00:00]} Kf7 {[%emt 0:00:00]} 81. Bd5+ {[%emt 0:00:00]} Kg7 {[%emt 0:00:00]} 82. Kg5 {[%emt 0:00:00]} Kh8 {[%emt 0:00:00]} 83. Be4 {[%emt 0:00:00]} Kg7 {[%emt 0:00:00]} 84. Bg6 {[%emt 0:00:00]} Kh8 {[%emt 0:00:00]} 85. Kf6 {[%emt 0:00:00]} Kg8 {[%emt 0:00:00]} 86. Ne5 {[%emt 0:00:00]} Kh8 {[%emt 0:00:00]} 87. Nf7+ {[%emt 0:00:00]} Kg8 {[%emt 0:00:00]} 88. Bf5 {[%emt 0:00:00]} Kf8 {[%emt 0:00:00]} 89. Bh7 {[%emt 0:00:00]} Ke8 {[%emt 0:00:00]} 90. Ne5 {[%emt 0:00:00]} Kd8 {[%emt 0:00:00]} 91. Ke6 {[%emt 0:00:00]} Kc7 {[%emt 0:00:00]} 92. Nd7 {[%emt 0:00:00]} Kc6 {[%emt 0:00:00]} 93. Bd3 {[%emt 0:00:00]} Kc7 {[%emt 0:00:00]} 94. Bb5 {[%emt 0:00:00]} Kd8 {[%emt 0:00:00]} 95. Bd3 {[%emt 0:00:00]} Kc7 {[%emt 0:00:00]} 96. Be4 {[%emt 0:00:00]} Kd8 {[%emt 0:00:00]} 97. Kd6 {[%emt 0:00:00]} Kc8 {[%emt 0:00:00]} 98. Nc5 {[%emt 0:00:00]} Kd8 {[%emt 0:00:00]} 99. Bg6 {[%emt 0:00:00]} Kc8 {[%emt 0:00:00]} 100. Be8 {[%emt 0:00:00]} Kd8 {[%emt 0:00:00]} 101. Bb5 {[%emt 0:00:00]} Kc8 {[%emt 0:00:00]} 102. Bd7+ {[%emt 0:00:00]} Kb8 {[%emt 0:00:00]} 103. Kc6 {[%emt 0:00:00]} Ka7 {[%emt 0:00:00]} 104. Kc7 {[%emt 0:00:00]} Ka8 {[%emt 0:00:00]} 105. Bc8 {[%emt 0:00:00]} Ka7 {[%emt 0:00:00]} 106. Nd7 {[%emt 0:00:00]} Ka8 {[%emt 0:00:00]} 107. Nb8 {[%emt 0:00:00]} Ka7 {[%emt 0:00:00]} 108. Nc6+ {[%emt 0:00:00]} 1-0

[Event "Fagernes GM-A 2019"]
[Site "Fagernes"]
[Date "2019.04.15"]
[Round "2.16"]
[White "Andersen, Morten"]
[Black "Lillevold, Frode"]
[Result "1-0"]
[ECO "E05"]
[WhiteElo "2223"]
[BlackElo "2076"]
[Annotator "NA"]
[PlyCount "82"]
[EventDate "2019.04.14"]
[EventType "tourn"]
[EventCountry "NOR"]
[SourceTitle "playchess.com"]
[Source "ChessBase"]
[SourceQuality "1"]
[TimeControl "40/7200:3600"]

1. d4 {[%emt 0:00:02]} d5 {[%emt 0:00:01]} 2. c4 {[%emt 0:00:08]} e6 {[%emt 0:00:05]} 3. Nf3 {[%emt 0:00:15]} Be7 {[%emt 0:01:08]} 4. g3 {[%emt 0:00:14]} Nf6 {[%emt 0:00:13]} 5. Bg2 {[%emt 0:00:10]} O-O {[%emt 0:00:14]} 6. O-O {[%emt 0:00:18]} dxc4 {[%emt 0:00:11]} 7. Qc2 {[%emt 0:00:43]} a6 {[%emt 0:00:13]} 8. a4 {[%emt 0:01:40]} Nbd7 {[%emt 0:06:29]} 9. Nbd2 {[%emt 0:04:37]} c5 {[%emt 0:05:51]} 10. dxc5 {[%emt 0:02:35]} Bxc5 {[%emt 0:03:49]} 11. Nxc4 {[%emt 0:01:51] E05: Open Catalan: 5 Nf3 Be7} Qe7 {[%emt 0:01:49]} 12. Bf4 {[%emt 0:06:34]} (12. e4 e5 13. b3 Ne8 14. Ne3 Bxe3 15. fxe3 Ndf6 16. Ba3 Nd6 17. Rad1 Rd8 18. Rd3 Bg4 19. Nh4 Rd7 20. h3 Be6 21. Qc5 Rad8 22. Qxe5 Bc4 23. Qxe7 Bxd3 24. Qxd8+ Rxd8 25. Rd1 {1-0 (25) Mikhalevski,V (2592)-Battaglini,G (2341) Philadelphia 2008}) 12... h6 {[%emt 0:06:48]} 13. Rfd1 $146 {[%emt 0:09:11]} ({Predecessor:} 13. Nfe5 Nd5 14. Bd2 Nxe5 15. Nxe5 Qc7 16. Nc4 Bd7 17. Rac1 Rac8 18. Qb3 b5 19. axb5 Bxb5 {½-½ (31) Minero Pineda,S (2405)-Lacayo,R (2245) Guatemala City 2000}) 13... Ng4 {[%emt 0:27:07]} 14. Bd6 {[%emt 0:21:05]} Bxd6 {[%emt 0:03:13]} 15. Nxd6 {[%emt 0:01:36]} Nb6 {[%emt 0:03:46]} 16. Qc5 {[%emt 0:08:49]} Nd5 {[%emt 0:02:04]} 17. Rac1 {[%emt 0:07:21]} b6 {[%emt 0:03:05]} 18. Qa3 {[%emt 0:03:47]} Rd8 {[%emt 0:03:14]} 19. Nc4 $16 {[%emt 0:01:28]} ({Don't do} 19. Nxc8 Qxa3 20. bxa3 Raxc8 $14) 19... Qxa3 {[%emt 0:00:37]} 20. bxa3 {[%emt 0:01:03]} Bb7 {[%emt 0:03:48]} 21. e4 {[%emt 0:02:08]} Ndf6 {[%emt 0:18:16]} 22. h3 {[%emt 0:15:04]} Nxf2 {[%emt 0:01:57]} 23. Kxf2 {[%emt 0:00:24]} Nxe4+ {[%emt 0:00:09]} 24. Ke3 {[%emt 0:00:44]} Nxg3 {[%emt 0:00:57]} 25. Nxb6 {[%emt 0:01:27]} Nf5+ {[%emt 0:03:00]} 26. Kf2 {[%emt 0:00:19]} Rab8 {[%emt 0:00:58]} 27. a5 {[%emt 0:02:23]} e5 {[%emt 0:03:22]} 28. Nd7 {[%emt 0:03:28]} Bxf3 {[%emt 0:02:08]} 29. Bxf3 {[%emt 0:03:58]} Rb2+ {[%emt 0:00:19]} 30. Kg1 {[%emt 0:04:43]} Re8 {[%emt 0:05:22]} 31. Rb1 {[%emt 0:02:06]} Ra2 {[%emt 0:01:41]} 32. Rb8 {[%emt 0:01:21]} Rxb8 {[%emt 0:00:29]} 33. Nxb8 {[%emt 0:00:02]} Nd4 {[%emt 0:01:20]} 34. Rd3 {[%emt 0:00:59]} Rd2 {[%emt 0:02:23]} 35. Be4 {[%emt 0:01:25]} Rb2 {[%emt 0:01:17]} 36. Nxa6 {[%emt 0:00:18]} f5 {[%emt 0:00:01]} 37. Bd5+ {[%emt 0:00:54]} Kh7 {[%emt 0:00:02]} 38. Nb4 {[%emt 0:00:52]} Ne2+ {[%emt 0:00:30]} 39. Kf1 {[%emt 0:00:25]} e4 {[%emt 0:01:18]} 40. Rb3 {[%emt 0:01:31]} Rxb3 {[%emt 0:00:46]} 41. Bxb3 {[%emt 1:00:15]} Ng3+ {[%emt 0:01:52]} 1-0

[Event "Fagernes GM-A 2019"]
[Site "Fagernes"]
[Date "2019.04.15"]
[Round "2.18"]
[White "Nielsen, Andre"]
[Black "Fuglestein, Sander"]
[Result "1-0"]
[ECO "B15"]
[WhiteElo "2201"]
[BlackElo "2000"]
[Annotator "NA"]
[PlyCount "117"]
[EventDate "2019.04.14"]
[EventType "tourn"]
[EventCountry "NOR"]
[SourceTitle "playchess.com"]
[Source "ChessBase"]
[SourceQuality "1"]
[TimeControl "40/7200:3600"]

1. e4 {[%emt 0:00:04]} c6 {[%emt 0:00:07]} 2. d4 {[%emt 0:00:16]} d5 {[%emt 0:00:04]} 3. Nc3 {[%emt 0:00:18]} dxe4 {[%emt 0:00:07]} 4. Nxe4 {[%emt 0:00:15]} Nf6 5. Nxf6+ exf6 6. Bc4 {[%emt 0:02:36]} Bd6 {[%emt 0:00:19]} 7. Qe2+ {[%emt 0:00:32]} Be7 8. Nf3 {[%emt 0:00:35]} O-O {[%emt 0:00:10]} 9. O-O {[%emt 0:00:35]} Bd6 {[%emt 0:00:10]} 10. Re1 {[%emt 0:01:44]} Na6 {[%emt 1:59:03]} 11. Nd2 {[%emt 0:14:23]} Nc7 {[%emt 0:00:00]} 12. Ne4 {[%emt 0:02:25]} Re8 {[%emt 0:00:00]} 13. Qh5 {[%emt 0:05:52]} Be6 {[%emt 0:00:00]} 14. Nxd6 {[%emt 0:11:42]} Qxd6 {[%emt 0:00:00]} 15. Bd3 {[%emt 0:03:08]} g6 {[%emt 0:00:00]} 16. Qh4 {[%emt 0:02:01]} Bd7 {[%emt 0:00:00]} (16... Bc4 $11 17. Rxe8+ Rxe8 18. Bxc4 Re1+ 19. Bf1 Qe6) 17. Bd2 {[%emt 0:09:30]} b5 {[%emt 0:00:00]} 18. c3 {[%emt 0:10:15]} Nd5 $14 {[%emt 0:00:00]} 19. b3 {[%emt 0:04:32]} Rxe1+ {[%emt 0:00:00]} 20. Rxe1 {[%emt 0:02:25]} Re8 {[%emt 0:00:00]} 21. Rxe8+ {[%emt 0:01:47]} Bxe8 {[%emt 0:00:00]} 22. c4 {[%emt 0:05:27]} bxc4 {[%emt 0:00:00]} 23. bxc4 {[%emt 0:01:19]} Ne7 {[%emt 0:00:00]} 24. Qf4 {[%emt 0:07:58]} Qxf4 {[%emt 0:00:00]} 25. Bxf4 {[%emt 0:00:10]} Bd7 {[%emt 0:00:00]} 26. Bd6 {[%emt 0:05:07]} Nc8 {[%emt 0:00:00]} 27. Bc5 {[%emt 0:03:38]} Nb6 {[%emt 0:00:00]} 28. Kf1 {[%emt 0:06:54]} f5 {[%emt 0:00:00]} 29. Ke2 {[%emt 0:02:10]} Be6 {[%emt 0:00:00]} 30. Bxb6 {[%emt 0:03:14]} axb6 {[%emt 0:00:00]} 31. a4 {[%emt 0:00:25]} Kf8 {[%emt 0:00:00]} 32. Kd2 {[%emt 0:05:18]} c5 {[%emt 0:00:00]} 33. Kc3 {[%emt 0:00:17]} Ke7 {[%emt 0:00:00]} 34. dxc5 {[%emt 0:00:43]} bxc5 {[%emt 0:00:00]} 35. Be2 {[%emt 0:00:27]} Kd6 {[%emt 0:00:00]} 36. Bf3 {[%emt 0:00:08]} Bc8 {[%emt 0:00:00]} 37. Bd5 {[%emt 0:00:27]} f6 {[%emt 0:00:00]} 38. a5 {[%emt 0:00:28]} Kc7 {[%emt 0:00:00]} 39. g3 {[%emt 0:00:28]} Kb8 {[%emt 0:00:00]} 40. Bc6 {[%emt 0:00:17]} Kc7 {[%emt 0:00:00]} 41. Be8 {[%emt 0:02:41]} Bb7 {[%emt 0:04:12]} 42. Kb3 {[%emt 0:01:56]} Kd8 {[%emt 0:01:18]} 43. Bb5 {[%emt 0:01:08]} Kc7 {[%emt 0:00:17]} 44. Ka4 {[%emt 0:01:18]} Bc8 {[%emt 0:02:27]} 45. Be8 {[%emt 0:12:00]} Kd8 {[%emt 0:01:27]} 46. Bc6 {[%emt 0:08:18]} Ba6 {[%emt 0:07:30]} 47. Bb5 {[%emt 0:01:09]} Bc8 {[%emt 0:05:46]} 48. a6 {[%emt 0:00:55]} Kc7 {[%emt 0:00:54]} 49. a7 {[%emt 0:04:18]} Bb7 {[%emt 0:00:08]} 50. Ka5 {[%emt 0:00:15]} Be4 {[%emt 0:01:06]} 51. Be8 {[%emt 0:01:24]} Kb7 {[%emt 0:01:20]} 52. Kb5 {[%emt 0:00:21]} Kxa7 {[%emt 0:00:36]} 53. Kxc5 {[%emt 0:00:16]} Kb7 {[%emt 0:00:16]} 54. Kd6 {[%emt 0:00:15]} Kb8 {[%emt 0:01:09]} 55. c5 {[%emt 0:00:23]} Bb7 {[%emt 0:00:11]} 56. c6 {[%emt 0:00:14]} Bc8 {[%emt 0:00:06]} 57. Bd7 {[%emt 0:00:25]} h5 {[%emt 0:00:26]} 58. Bxc8 {[%emt 0:00:28]} Kxc8 {[%emt 0:00:03]} 59. Ke6 {[%emt 0:00:36]} 1-0

[Event "Fagernes GM-A 2019"]
[Site "Fagernes"]
[Date "2019.04.15"]
[Round "2.19"]
[White "Grover, Sigurd Loe"]
[Black "Skotheim, Andreas"]
[Result "0-1"]
[ECO "D05"]
[WhiteElo "2020"]
[BlackElo "2182"]
[Annotator "NA"]
[PlyCount "98"]
[EventDate "2019.04.14"]
[EventType "tourn"]
[EventCountry "NOR"]
[SourceTitle "playchess.com"]
[Source "ChessBase"]
[SourceQuality "1"]
[TimeControl "40/7200:3600"]

1. d4 {[%emt 0:00:02]} Nf6 {[%emt 0:00:13]} 2. Nf3 {[%emt 0:00:10]} d5 {[%emt 0:00:15]} 3. e3 {[%emt 0:00:14]} e6 {[%emt 0:10:00]} 4. Bd3 {[%emt 0:00:14]} c5 {[%emt 0:00:33]} 5. O-O {[%emt 0:00:36]} Nc6 {[%emt 0:00:58]} 6. b3 {[%emt 0:00:11]} cxd4 {[%emt 0:01:22]} 7. exd4 {[%emt 0:00:10]} Be7 {[%emt 0:00:23]} 8. Bb2 {[%emt 0:00:59]} O-O {[%emt 0:00:19]} 9. Ne5 {[%emt 0:02:14]} Qc7 {[%emt 0:04:23]} 10. a3 {[%emt 0:01:41]} Nd7 {[%emt 0:07:02]} 11. Qe2 {[%emt 0:03:04]} Ncxe5 {[%emt 0:07:33]} 12. dxe5 {[%emt 0:00:15]} Nc5 {[%emt 0:00:10]} 13. a4 {[%emt 0:12:35]} Nxd3 {[%emt 0:03:41]} 14. cxd3 {[%emt 0:00:56]} Bd7 {[%emt 0:01:13]} 15. Ba3 {[%emt 0:01:21]} Bxa3 {[%emt 0:01:20]} 16. Nxa3 {[%emt 0:00:49]} Rfc8 {[%emt 0:01:05]} 17. Ra2 {[%emt 0:19:16]} Qc3 {[%emt 0:07:14]} 18. Rb1 {[%emt 0:05:43]} a6 $15 {[%emt 0:05:14]} 19. Nc2 {[%emt 0:10:41]} b5 {[%emt 0:02:34]} 20. Ne1 {[%emt 0:02:28]} bxa4 {[%emt 0:04:56]} 21. bxa4 {[%emt 0:00:06]} Rab8 {[%emt 0:00:47]} 22. Rba1 {[%emt 0:04:59]} Rb4 {[%emt 0:05:45]} 23. Ra3 {[%emt 0:03:54]} Rb3 {[%emt 0:03:18]} 24. Rxb3 {[%emt 0:02:37]} Qxa1 {[%emt 0:02:52]} 25. Kf1 {[%emt 0:07:10]} Bxa4 {[%emt 0:08:14]} 26. Qb2 {[%emt 0:05:59]} Qxb2 {[%emt 0:00:35]} 27. Rxb2 {[%emt 0:00:02]} Bb5 {[%emt 0:01:03]} 28. Ke2 {[%emt 0:00:43]} g5 {[%emt 0:01:21]} 29. Rc2 {[%emt 0:03:53]} Rxc2+ {[%emt 0:03:37]} 30. Nxc2 {[%emt 0:00:04]} f6 {[%emt 0:00:30]} 31. exf6 {[%emt 0:03:07]} Kf7 {[%emt 0:00:08]} 32. Ke3 {[%emt 0:05:28]} Kxf6 {[%emt 0:01:43]} 33. d4 {[%emt 0:00:15]} Bc4 {[%emt 0:07:57]} 34. f4 {[%emt 0:06:02]} h6 {[%emt 0:00:49]} 35. g3 {[%emt 0:03:31]} Kf5 {[%emt 0:00:54]} 36. Kf3 {[%emt 0:00:11]} gxf4 {[%emt 0:00:51]} 37. gxf4 {[%emt 0:00:39]} a5 {[%emt 0:01:16]} 38. Ne3+ {[%emt 0:03:05]} Kf6 {[%emt 0:01:42]} 39. Nc2 {[%emt 0:01:26]} Bb3 {[%emt 0:06:47]} 40. Na3 {[%emt 0:01:39]} Kf5 {[%emt 0:02:02]} 41. h3 {[%emt 0:05:31]} Bc4 {[%emt 0:04:16]} 42. Nc2 {[%emt 0:02:24]} Bd3 {[%emt 0:01:11]} 43. Ne3+ {[%emt 0:02:19]} Kg6 {[%emt 0:07:01]} 44. Ng4 {[%emt 0:04:34]} Bc4 {[%emt 0:05:04]} 45. Ne3 {[%emt 0:11:37]} a4 {[%emt 0:03:16]} 46. Nc2 {[%emt 0:00:25]} Bd3 {[%emt 0:00:16]} 47. Na3 {[%emt 0:02:11]} Kf5 {[%emt 0:00:29]} 48. h4 {[%emt 0:04:55]} Bc4 {[%emt 0:01:34]} 49. Nc2 {[%emt 0:01:16]} Bb3 {[%emt 0:00:23]} 0-1

[Event "Fagernes GM-A 2019"]
[Site "Fagernes"]
[Date "2019.04.15"]
[Round "2.20"]
[White "Royset, Pal"]
[Black "Gronnestad, Anita"]
[Result "1-0"]
[ECO "B22"]
[WhiteElo "2167"]
[BlackElo "1954"]
[Annotator "NA"]
[PlyCount "57"]
[EventDate "2019.04.14"]
[EventType "tourn"]
[EventCountry "NOR"]
[SourceTitle "playchess.com"]
[Source "ChessBase"]
[SourceQuality "1"]
[TimeControl "40/7200:3600"]

1. e4 {[%emt 0:00:23]} c5 {[%emt 0:00:04]} 2. Nf3 {[%emt 0:00:35]} e6 {[%emt 0:00:18]} 3. c3 {[%emt 0:01:02]} d5 {[%emt 0:00:28]} 4. exd5 {[%emt 0:00:39]} Qxd5 {[%emt 0:01:35]} 5. d4 {[%emt 0:00:20]} Nc6 {[%emt 0:00:58]} 6. Be3 {[%emt 0:04:17]} Nf6 {[%emt 0:02:07]} 7. Na3 {[%emt 0:03:08]} cxd4 {[%emt 0:01:37]} 8. Nb5 {[%emt 0:00:45]} Qd8 {[%emt 0:00:22]} 9. Nfxd4 {[%emt 0:04:24]} Nd5 {[%emt 0:07:26]} 10. Qf3 {[%emt 0:08:32]} Bd7 {[%emt 0:05:16]} 11. Nf5 {[%emt 0:04:33]} Qb8 $1 {[%emt 0:07:52]} 12. O-O-O {[%emt 0:12:35]} a6 {[%emt 0:08:42]} 13. Na3 $17 {[%emt 0:24:38]} (13. Bf4 $11 {keeps the balance.} Ne5 14. Qg3) 13... Ne5 {[%emt 0:13:31]} 14. Qg3 {[%emt 0:02:00]} Ng6 {[%emt 0:11:26]} 15. Nc4 {[%emt 0:04:54]} exf5 {[%emt 0:11:06]} 16. Qxb8+ {[%emt 0:03:29]} Rxb8 {[%emt 0:00:07]} 17. Rxd5 {[%emt 0:00:05]} Be6 {[%emt 0:00:27]} 18. Rd2 {[%emt 0:02:54]} b5 {[%emt 0:05:41]} 19. Nd6+ {[%emt 0:03:48]} Bxd6 {[%emt 0:00:23]} 20. Rxd6 {[%emt 0:00:09]} Bxa2 {[%emt 0:05:26]} 21. Rxa6 {[%emt 0:02:36]} Bc4 {[%emt 0:00:33]} 22. Bc5 {[%emt 0:02:30]} Bd5 {[%emt 0:12:04]} 23. Bd3 {[%emt 0:05:07]} Nf4 {[%emt 0:06:34]} 24. Bxf5 {[%emt 0:05:01]} Rd8 {[%emt 0:08:14]} 25. Ra7 {[%emt 0:03:26]} Ra8 {[%emt 0:01:25]} 26. Re1+ {[%emt 0:02:59]} Ne6 {[%emt 0:00:27]} 27. Bxe6 {[%emt 0:02:24]} fxe6 {[%emt 0:00:07]} 28. Rxe6+ {[%emt 0:00:46]} Kd8 {[%emt 0:01:09]} 29. Rd6+ {[%emt 0:00:42]} 1-0

[Event "Fagernes GM-A 2019"]
[Site "Fagernes"]
[Date "2019.04.15"]
[Round "2.21"]
[White "Isha Sharma"]
[Black "Bjerke, Richard"]
[Result "1/2-1/2"]
[ECO "B51"]
[WhiteElo "1989"]
[BlackElo "2156"]
[Annotator "NA"]
[PlyCount "105"]
[EventDate "2019.04.14"]
[EventType "tourn"]
[EventCountry "NOR"]
[SourceTitle "playchess.com"]
[Source "ChessBase"]
[SourceQuality "1"]
[TimeControl "40/7200:3600"]

1. e4 {[%emt 0:00:04]} c5 {[%emt 0:00:24]} 2. Nf3 {[%emt 0:00:13]} d6 {[%emt 0:00:40]} 3. Bb5+ {[%emt 0:00:12]} Nc6 {[%emt 0:00:49]} 4. O-O {[%emt 0:01:22]} Bd7 {[%emt 0:00:29]} 5. Re1 {[%emt 0:00:23]} a6 {[%emt 0:00:56]} 6. Bf1 {[%emt 0:00:26]} Nf6 {[%emt 0:00:28]} 7. c3 {[%emt 0:00:23]} Bg4 {[%emt 0:00:47]} 8. d3 {[%emt 0:01:23]} e6 {[%emt 0:01:07]} 9. Nbd2 {[%emt 0:00:37]} Be7 {[%emt 0:00:33]} 10. h3 {[%emt 0:00:41]} Bh5 {[%emt 0:01:44]} 11. Qe2 {[%emt 0:04:34] B51: Sicilian: Moscow Variation (3 Bb5+) without 3...Bd7} Rc8 $146 {[%emt 0:02:13]} ({Predecessor:} 11... d5 12. g3 O-O 13. Bg2 Nd7 14. Nf1 Re8 15. exd5 exd5 16. g4 Bg6 17. Bf4 Nf8 18. Bg3 Ne6 {0-1 (46) Raghavi,N (2038)-Illescas Cordoba,M (2601) La Massana 2012}) 12. g4 {[%emt 0:02:32]} Bg6 {[%emt 0:00:10]} 13. Bg2 {[%emt 0:00:13]} Nd7 {[%emt 0:01:27]} 14. Nf1 {[%emt 0:01:06]} h5 {[%emt 0:05:07]} 15. g5 {[%emt 0:02:02]} h4 {[%emt 0:01:42]} 16. Bd2 {[%emt 0:03:18]} Nde5 {[%emt 0:06:40]} 17. N1h2 {[%emt 0:05:18]} Nxf3+ {[%emt 0:02:56]} 18. Nxf3 {[%emt 0:00:54]} Ne5 {[%emt 0:00:32]} 19. Nh2 {[%emt 0:01:31]} (19. Qe3 $1 $11 {remains equal.}) 19... Bh5 {[%emt 0:20:00]} ({But not} 19... Bxg5 $6 20. f4 $11) 20. Qe3 {[%emt 0:02:51]} c4 {[%emt 0:02:22]} 21. d4 {[%emt 0:01:01]} Nd3 {[%emt 0:00:38]} 22. Bf1 {[%emt 0:12:25]} Nxe1 {[%emt 0:01:31]} 23. Rxe1 {[%emt 0:00:04]} Qa5 {[%emt 0:06:34]} 24. a3 {[%emt 0:00:48]} Qb5 {[%emt 0:02:18]} 25. Bc1 {[%emt 0:00:11]} Qb3 {[%emt 0:06:50]} 26. Qf4 {[%emt 0:01:32]} Bd1 $15 {[%emt 0:03:40]} 27. Qd2 {[%emt 0:05:09]} Bc2 {[%emt 0:00:56]} 28. f4 {[%emt 0:03:35]} Bb1 {[%emt 0:03:57]} 29. Qf2 {[%emt 0:01:56]} Qb5 {[%emt 0:12:06]} 30. Nf3 {[%emt 0:01:13]} Bd3 {[%emt 0:00:24]} 31. Bg2 {[%emt 0:02:36]} f6 {[%emt 0:03:53]} 32. Nxh4 {[%emt 0:01:45]} fxg5 {[%emt 0:01:41]} 33. Ng6 {[%emt 0:00:14]} Rh6 {[%emt 0:03:51]} 34. Nxe7 {[%emt 0:05:05]} Kxe7 {[%emt 0:00:08]} 35. f5 {[%emt 0:00:27]} Rh5 {[%emt 0:13:25]} 36. Bf3 {[%emt 0:01:59]} Rch8 {[%emt 0:03:15]} 37. Bxh5 {[%emt 0:00:34]} Rxh5 {[%emt 0:00:09]} 38. Qf3 {[%emt 0:00:59]} Qe8 {[%emt 0:01:00]} 39. fxe6 {[%emt 0:00:19]} Qg6 {[%emt 0:00:45]} 40. e5 {[%emt 0:00:32]} d5 {[%emt 0:01:35]} 41. Qxd5 {[%emt 1:00:23]} Qxe6 {[%emt 0:00:26]} 42. Qxe6+ {[%emt 0:00:00]} Kxe6 {[%emt 0:00:08]} 43. Kg2 {[%emt 0:00:00]} Bf5 {[%emt 0:03:41]} 44. Re3 {[%emt 0:00:00]} Rh4 {[%emt 0:07:52]} 45. Bd2 {[%emt 0:00:00]} g4 {[%emt 0:02:02]} 46. hxg4 {[%emt 0:00:00]} Rxg4+ {[%emt 0:00:08]} 47. Kf2 {[%emt 0:00:00]} Rh4 {[%emt 0:02:17]} 48. Rg3 {[%emt 0:00:00]} g6 {[%emt 0:01:40]} 49. Bg5 {[%emt 0:00:00]} Rh2+ {[%emt 0:01:38]} 50. Rg2 {[%emt 0:00:00]} Rh1 {[%emt 0:00:46]} 51. Rg1 {[%emt 0:00:00]} Rh5 {[%emt 0:03:57]} 52. Bf4 {[%emt 0:00:00]} Rh4 {[%emt 0:05:16]} 53. Bg3 {[%emt 0:47:10]} 1/2-1/2